fUSD/lending_fUSD_20251130
["ID","MTS","AMOUNT","RATE_DAILY","PERIOD"]
[395156178,1764489044906,-1946.0,0.0001641,2]
[395156179,1764489044915,-150.0,0.0001642,2]
[395156180,1764489044925,-1946.0,0.0001643,2]
[395156181,1764489044934,-729.0,0.00016438,2]
[395156182,1764489044944,-461.0,0.00016438,2]
[395156183,1764489044953,-483.0,0.00016438,2]
[395156184,1764489044962,-500.0,0.00016438,2]
[395156185,1764489044973,-150.0,0.00016438,2]
[395156186,1764489044984,-500.0,0.00016438,2]
[395156187,1764489044994,-500.0,0.00016438,2]
[395156188,1764489045003,-500.0,0.00016438,2]
[395156189,1764489045013,-500.0,0.00016438,2]
[395156190,1764489045022,-500.0,0.00016438,2]
[395156191,1764489045031,-500.0,0.00016438,2]
[395156192,1764489045041,-500.0,0.00016438,2]
[395156193,1764489045050,-500.0,0.00016438,2]
[395156194,1764489045059,-500.0,0.00016438,2]
[395156195,1764489045207,-500.0,0.00016438,2]
[395156196,1764489045217,-500.0,0.00016438,2]
[395156197,1764489045226,-500.0,0.00016438,2]
[395156198,1764489045235,-500.0,0.00016438,2]
[395156199,1764489045245,-500.0,0.00016438,2]
[395156200,1764489045254,-500.0,0.00016438,2]
[395156201,1764489045266,-500.0,0.00016438,2]
[395156202,1764489045275,-500.0,0.00016438,2]
[395156203,1764489045284,-500.0,0.00016438,2]
[395156204,1764489045293,-500.0,0.00016438,2]
[395156205,1764489045302,-500.0,0.00016438,2]
[395156206,1764489045311,-500.0,0.00016438,2]
[395156207,1764489045320,-500.0,0.00016438,2]
[395156208,1764489045329,-500.0,0.00016438,2]
[395156209,1764489045339,-500.0,0.00016438,2]
[395156210,1764489045347,-500.0,0.00016438,2]
[395156211,1764489045356,-500.0,0.00016438,2]
[395156212,1764489045366,-500.0,0.00016438,2]
[395156213,1764489045375,-500.0,0.00016438,2]
[395156214,1764489045385,-642.79221301,0.00016438,2]
[395156215,1764489045394,-500.0,0.00016438,2]
[395156216,1764489045404,-500.0,0.00016438,2]
[395156217,1764489045414,-500.0,0.00016438,2]
[395156218,1764489045423,-500.0,0.00016438,2]
[395156219,1764489045433,-900.0,0.00016438,2]
[395156220,1764489045442,-6608.79,0.00016438,2]
[395156221,1764489045452,-13923.73,0.00016438,2]
[395156222,1764489045461,-150.0,0.00016455,2]
[395156223,1764489045471,-150.0,0.00016464,2]
[395156224,1764489045480,-150.0,0.00016464,2]
[395156225,1764489045490,-14533.21226536,0.00016467,2]
[395156226,1764489045499,-150.0,0.00016477,2]
[395156227,1764489045509,-150.0,0.00016477,2]
[395156228,1764489045518,-150.0,0.00016501,2]
[395156229,1764489045528,-1946.0,0.00016517,2]
[395156230,1764489045537,-1001.57760606,0.00016521,2]
[395156231,1764489045547,-916.80275832,0.00016521,2]
[395156232,1764489045555,-1000.0,0.00016521,2]
[395156233,1764489045564,-360.33354768,0.00016521,2]
[395156234,1764489045574,-512.61581703,0.00016521,2]
[395156235,1764489045584,-505.74952757,0.00016521,2]
[395156236,1764489045594,-1001.35128612,0.00016521,2]
[395156237,1764489045604,-1000.745763,0.00016521,2]
[395156238,1764489045614,-500.92969355,0.00016521,2]
[395156239,1764489045623,-1000.0,0.00016521,2]
[395156240,1764489045632,-1000.0,0.00016521,2]
[395156241,1764489045642,-1000.0,0.00016521,2]
[395156242,1764489045651,-1002.56103431,0.00016521,2]
[395156243,1764489045661,-193.94586418,0.00016521,2]
[395156244,1764489045670,-1000.0,0.00016521,2]
[395156245,1764489045679,-150.0,0.00016529,2]
[395156246,1764489045688,-275.99,0.0001654,2]
[395156247,1764489045697,-1946.0,0.00016554,2]
[395156248,1764489045706,-150.0,0.00016562,2]
[395156249,1764489045715,-150.0,0.00016562,2]
[395156250,1764489045724,-150.0,0.00016562,2]
[395156251,1764489045733,-150.0,0.00016562,2]
[395156252,1764489045742,-150.0,0.00016562,2]
[395156253,1764489045751,-729.0,0.00016575,2]
[395156254,1764489045760,-461.0,0.00016575,2]
[395156255,1764489045769,-483.0,0.00016575,2]
[395156256,1764489045779,-500.0,0.00016575,2]
[395156257,1764489045788,-150.0,0.00016575,2]
[395156258,1764489045798,-150.0,0.00016594,2]
[395156259,1764489045807,-150.0,0.00016594,2]
[395156260,1764489045817,-1946.0,0.00016598,2]
[395156261,1764489045826,-736.0,0.000166,2]
[395156262,1764489045835,-1946.0,0.00016624,2]
[395156263,1764489045845,-1946.0,0.00016633,2]
[395156264,1764489045854,-553.64373807,0.00016635,2]
[395156265,1764489045863,-642.94,0.00016635,2]
[395156266,1764489045872,-151.0,0.00016635,2]
[395156267,1764489045882,-241.19087969,0.00016635,2]
[395156268,1764489045892,-1000.0,0.00016635,2]
[395156269,1764489045901,-150.0,0.00016647,2]
[395156270,1764489045910,-150.0,0.00016647,2]
[395156271,1764489045919,-150.0,0.0001666,2]
[395156272,1764489045928,-1005.09286587,0.0001666,2]
[395156273,1764489045937,-1074.28319703,0.0001666,2]
[395156274,1764489045946,-1022.92634518,0.0001666,2]
[395156275,1764489045955,-1073.33697373,0.0001666,2]
[395156276,1764489045964,-1265.28798431,0.0001666,2]
[395156277,1764489045975,-150.0,0.00016668,2]
[395156278,1764489045986,-1946.0,0.00016693,2]
[395156279,1764489045995,-150.0,0.00016703,2]
[395156280,1764489046004,-1946.0,0.0001671,2]
[395156281,1764489046013,-1946.0,0.00016711,2]
[395156282,1764489046024,-729.0,0.00016712,2]
[395156283,1764489046033,-461.0,0.00016712,2]
[395156284,1764489046042,-483.0,0.00016712,2]
[395156285,1764489046052,-500.0,0.00016712,2]
[395156286,1764489046061,-179.75220737,0.00016712,2]
[395156287,1764489046069,-237.3246584,0.00016713,2]
[395156288,1764489046078,-150.0,0.00016725,2]
[395156289,1764489046087,-150.0,0.00016725,2]
[395156290,1764489046096,-150.0,0.00016732,2]
[395156291,1764489046105,-150.0,0.00016744,2]
[395156292,1764489046114,-157.04140477,0.00016763,2]
[395156293,1764489046123,-150.0,0.00016774,2]
[395156294,1764489046132,-150.0,0.0001679,2]
[395156296,1764489046141,-157.04140473,0.00016797,2]
[395156297,1764489046150,-1095.0,0.000168,2]
[395156298,1764489046159,-150.0,0.00016816,2]
[395156299,1764489046168,-150.0,0.00016816,2]
[395156300,1764489046177,-2937.86346,0.0001683,2]
[395156301,1764489046187,-157.04140473,0.00016832,2]
[395156302,1764489046196,-150.0,0.00016845,2]
[395156303,1764489046205,-734.22692758,0.00016849,2]
[395156304,1764489046214,-463.7551994,0.00016849,2]
[395156305,1764489046223,-487.05232631,0.00016849,2]
[395156306,1764489046232,-500.0,0.00016849,2]
[395156307,1764489046241,-150.0,0.00016856,2]
[395156308,1764489046250,-150.0,0.00016856,2]
[395156309,1764489046259,-2087.0,0.00016858,2]
[395156310,1764489046268,-500.0,0.00016859,2]
[395156311,1764489046277,-269290.4735457,0.0001686,2]
[395156312,1764489046287,-200.0,0.00016863,2]
[395156313,1764489046296,-200.0,0.00016864,2]
[395156314,1764489046305,-200.0,0.00016864,2]
[395156315,1764489046314,-200.0,0.00016864,2]
[395156316,1764489046324,-200.0,0.00016864,2]
[395156317,1764489046333,-157.04140473,0.00016866,2]
[395156318,1764489046343,-150.0,0.0001688,2]
[395156319,1764489046352,-10000.0,0.000169,2]
[395156320,1764489046362,-14533.21226536,0.000169,2]
[395156321,1764489046371,-1644.74030778,0.000169,2]
[395156322,1764489046381,-157.04140473,0.000169,2]
[395156323,1764489046390,-557.79333601,0.000169,2]
[395156324,1764489046399,-1234.1868656,0.000169,2]
[395156325,1764489046409,-500.0,0.000169,2]
[395156326,1764489046418,-500.0,0.000169,2]
[395156327,1764489046427,-500.0,0.000169,2]
[395156329,1764489046436,-500.0,0.000169,2]
[395156330,1764489046446,-500.0,0.000169,2]
[395156332,1764489046455,-500.0,0.000169,2]
[395156333,1764489046465,-500.0,0.000169,2]
[395156334,1764489046475,-500.0,0.000169,2]
[395156335,1764489046485,-500.0,0.000169,2]
[395156336,1764489046496,-500.0,0.000169,2]
[395156337,1764489046506,-500.0,0.000169,2]
[395156338,1764489046516,-500.0,0.000169,2]
[395156339,1764489046526,-500.0,0.000169,2]
[395156340,1764489046537,-500.0,0.000169,2]
[395156341,1764489046547,-500.0,0.000169,2]
[395156342,1764489046558,-500.0,0.000169,2]
[395156343,1764489046568,-197.92719606,0.000169,2]
[395156344,1764489046579,-9418.0,0.000169,2]
[395156345,1764489046595,-150.0,0.00016901,2]
[395156346,1764489046605,-150.0,0.00016921,2]
[395156347,1764489046616,-1946.0,0.00016928,2]
[395156348,1764489046627,-208.75,0.0001693,2]
[395156349,1764489046637,-1347.0,0.00016959,2]
[395156350,1764489046648,-218.20390519,0.00016963,2]
[395156351,1764489046659,-500.0,0.00016972,2]
[395156352,1764489046670,-500.0,0.00016972,2]
[395156353,1764489046680,-500.0,0.00016972,2]
[395156354,1764489046690,-500.0,0.00016972,2]
[395156355,1764489046701,-556.83585957,0.00016972,2]
[395156356,1764489046712,-519.32805224,0.00016972,2]
[395156357,1764489046722,-500.0,0.00016972,2]
[395156358,1764489046732,-500.0,0.00016973,2]
[395156359,1764489046742,-500.0,0.00016973,2]
[395156360,1764489046751,-500.0,0.00016973,2]
[395156361,1764489046761,-500.0,0.00016973,2]
[395156362,1764489046771,-500.0,0.00016973,2]
[395156363,1764489046780,-500.0,0.00016973,2]
[395156364,1764489046790,-500.838144,0.00016973,2]
[395156365,1764489046800,-176.66973248,0.00016973,2]
[395156366,1764489046810,-500.0,0.00016973,2]
[395156367,1764489046819,-366.95471126,0.00016973,2]
[395156368,1764489046829,-502.42313954,0.00016973,2]
[395156369,1764489046842,-500.0,0.00016973,2]
[395156370,1764489046852,-500.0,0.00016973,2]
[395156371,1764489046862,-162.090508,0.00016973,2]
[395156372,1764489046871,-500.0,0.00016973,2]
[395156373,1764489046881,-500.0,0.00016973,2]
[395156374,1764489046890,-500.0,0.00016973,2]
[395156375,1764489046901,-507.2295556,0.00016973,2]
[395156376,1764489046911,-500.0,0.00016973,2]
[395156377,1764489046921,-500.0,0.00016973,2]
[395156378,1764489046934,-500.0,0.00016973,2]
[395156379,1764489046943,-500.0,0.00016973,2]
[395156380,1764489046952,-500.49965341,0.00016973,2]
[395156381,1764489046962,-500.0,0.00016973,2]
[395156382,1764489046976,-500.0,0.00016973,2]
[395156383,1764489046995,-500.0,0.00016973,2]
[395156384,1764489047006,-167.3210545,0.00016973,2]
[395156385,1764489047015,-500.0,0.00016973,2]
[395156386,1764489047024,-500.0,0.00016973,2]
[395156387,1764489047035,-500.0,0.00016973,2]
[395156388,1764489047044,-500.38978168,0.00016973,2]
[395156389,1764489047053,-215.92719524,0.00016973,2]
[395156390,1764489047063,-500.0,0.00016973,2]
[395156391,1764489047072,-500.0,0.00016973,2]
[395156392,1764489047082,-172.99922432,0.00016973,2]
[395156393,1764489047093,-500.0,0.00016973,2]
[395156394,1764489047102,-415.54250471,0.00016973,2]
[395156395,1764489047111,-187.03419553,0.00016973,2]
[395156396,1764489047120,-500.0,0.00016983,2]
[395156397,1764489047131,-500.0,0.00016986,2]
[395156398,1764489047140,-204.30018079,0.00016986,2]
[395156399,1764489047150,-150.10346577,0.00016986,2]
[395156400,1764489047158,-165.6418434,0.00016986,2]
[395156401,1764489047167,-168.80232589,0.00016986,2]
[395156402,1764489047176,-174.32201145,0.00016986,2]
[395156403,1764489047185,-239.89101121,0.00016986,2]
[395156404,1764489047194,-151.57196874,0.00016986,2]
[395156405,1764489047203,-155.69497856,0.00016986,2]
[395156406,1764489047212,-151.4044182,0.00016986,2]
[395156407,1764489047221,-152.10525802,0.00016986,2]
[395156408,1764489047230,-152.51466941,0.00016986,2]
[395156409,1764489047240,-244.26630786,0.00016986,2]
[395156410,1764489047249,-246.57118594,0.0001699,2]
[395156411,1764489047258,-246.57118594,0.0001699,2]
[395156412,1764489047267,-2750.8297623,0.00016994,2]
[395156413,1764489047277,-151.0,0.00016996,2]
[395156414,1764489047287,-89763.4911819,0.00016997,2]
[395156415,1764489047296,-151.0,0.00016997,2]
[395156416,1764489047306,-500.0,0.00016999,2]
[395156417,1764489047316,-500.0,0.00016999,2]
[395156418,1764489047325,-500.0,0.00016999,2]
[395156419,1764489047335,-500.0,0.00016999,2]
[395156420,1764489047344,-509.39630906,0.00016999,2]
[395156421,1764489047353,-522.79968162,0.00016999,2]
[395156422,1764489047363,-500.0,0.00016999,2]
[395156423,1764489047372,-500.0,0.00016999,2]
[395156424,1764489047382,-500.0,0.00016999,2]
[395156425,1764489047391,-562.09588733,0.00016999,2]
[395156426,1764489047400,-500.0,0.00016999,2]
[395156427,1764489047410,-500.0,0.00016999,2]
[395156428,1764489047419,-349.68798238,0.00016999,2]
[395156429,1764489047428,-300.0,0.00016999,2]
[395156430,1764489047437,-300.0,0.00016999,2]
[395156431,1764489047446,-339.87471397,0.00016999,2]
[395156432,1764489047456,-300.0,0.00016999,2]
[395156433,1764489047466,-300.0,0.00016999,2]
[395156434,1764489047475,-300.0,0.00016999,2]
[395156435,1764489047484,-500.0,0.00016999,2]
[395156436,1764489047493,-500.0,0.00016999,2]
[395156437,1764489047502,-500.0,0.00016999,2]
[395156438,1764489047511,-500.0,0.00016999,2]
[395156439,1764489047520,-500.0,0.00016999,2]
[395156440,1764489047529,-500.0,0.00016999,2]
[395156441,1764489047538,-500.0,0.00016999,2]
[395156442,1764489047548,-500.0,0.00016999,2]
[395156443,1764489047557,-500.0,0.00016999,2]
[395156444,1764489047567,-500.0,0.00016999,2]
[395156445,1764489047577,-500.0,0.00016999,2]
[395156446,1764489047586,-500.0,0.00016999,2]
[395156447,1764489047595,-500.0,0.00016999,2]
[395156448,1764489047605,-191.9483848,0.00016999,2]
[395156449,1764489047615,-3072588.82704573,0.00017,2]
[395156450,1764489047624,-1995430.41190533,0.00017,2]
[395156451,1764489048673,-3020.26033526,0.00017,2]
[395156452,1764489048704,-30832.17525497,0.00017,2]
[395156453,1764489049904,-539.27971975,0.00017,2]
[395156454,1764489049916,-3030.275,0.00017,2]
[395156455,1764489049945,-1258375.97160776,0.00017,2]
[395156456,1764489049956,-19269.168089,0.00017,2]
[395156457,1764489050085,-14512.1024797,0.00017,2]
[395156458,1764489050097,-443.06358464,0.00017,2]
[395156459,1764489050371,-1.7e-07,0.00017,2]
[395156460,1764489050382,-1047.05473558,0.00017,2]
[395156461,1764489050393,-910.56041095,0.00017,2]
[395156462,1764489051962,-5522.74749257,0.00017,2]
[395156463,1764489052834,-16045.4875609,0.00017,2]
[395156469,1764489147053,8000.01,0.000129,2]
[395156470,1764489147118,10000.01,0.000129,2]
[395156471,1764489147178,10000.01,0.000129,2]
[395156472,1764489147239,1566.0504,0.000129,2]
[395156477,1764489159221,205.94,0.000129,2]
[395156479,1764489165396,1000.0,0.000129,2]
[395156481,1764489174996,7228.0196,0.000129,2]
[395156482,1764489175071,10000.01,0.000129,2]
[395156483,1764489175140,10000.01,0.000129,2]
[395156484,1764489175211,10000.01,0.000129,2]
[395156485,1764489175278,10000.01,0.000129,2]
[395156486,1764489175350,10000.01,0.000129,2]
[395156487,1764489175417,10000.01,0.000129,2]
[395156488,1764489175482,10000.01,0.000129,2]
[395156489,1764489175552,10000.01,0.000129,2]
[395156491,1764489175623,10000.01,0.000129,2]
[395156501,1764489182994,-300.0,0.00012899,2]
[395156502,1764489183025,-199.99999983,0.000129,2]
[395156504,1764489184820,-424.31960322,0.000129,2]
[395156505,1764489188808,-278.92725152,0.000129,2]
[395156506,1764489191053,-255.92714014,0.000129,2]
[395156511,1764489199179,-10000.01,0.000129,2]
[395156512,1764489199548,-10000.01,0.000129,2]
[395156513,1764489199792,-10000.01,0.000129,2]
[395156514,1764489200196,-10000.01,0.000129,2]
[395156515,1764489200667,-10000.01,0.000129,2]
[395156518,1764489206541,-10000.01,0.000129,2]
[395156530,1764489350767,-196.42370851,0.000128,2]
[395156531,1764489380791,-110.26512685,0.000128,2]
[395156532,1764489380818,-98.84401115,0.000128,2]
[395156533,1764489382421,-505.2686431,0.000128,2]
[395156534,1764489384009,-250.0,0.000128,2]
[395156535,1764489385583,-300.0,0.000128,2]
[395156536,1764489390084,-443.02251707,0.000128,2]
[395156537,1764489427167,1643.85,0.00012,2]
[395156545,1764489544430,500.0,0.00022,30]
[395156573,1764489564752,500.0,0.00025,120]
[395156575,1764489577408,500.0,0.00013099,4]
[395156576,1764489577640,500.0,0.00013099,5]
[395156577,1764489577898,500.0,0.00013888,6]
[395156586,1764489662847,-300.0,0.00012799,2]
[395156587,1764489662928,-300.0,0.00012799,2]
[395156588,1764489663009,-1200.0,0.00012799,2]
[395156589,1764489663094,-150.0,0.00012799,2]
[395156590,1764489663184,-250.0,0.000128,2]
[395156591,1764489663755,-3956.16,0.000128,2]
[395156592,1764489666664,-2538.12773756,0.000128,2]
[395156593,1764489666738,-4923.75452488,0.000128,2]
[395156599,1764489719507,205.92464816,0.00025,120]
[395156602,1764489750637,466.11,7.104e-05,2]
[395156603,1764489750835,466.11,7.478e-05,2]
[395156604,1764489751045,466.11,7.852e-05,2]
[395156605,1764489751440,466.11,8.226e-05,2]
[395156606,1764489751645,466.11,8.6e-05,2]
[395156607,1764489751877,466.11,8.974e-05,2]
[395156608,1764489752074,466.11,9.348e-05,2]
[395156609,1764489753696,466.11,9.722e-05,2]
[395156610,1764489753802,466.11,0.00010096,2]
[395156611,1764489754046,466.11,0.0001047,2]
[395156612,1764489754181,466.11,0.00010844,2]
[395156613,1764489754320,466.11,0.00011218,2]
[395156614,1764489754473,466.11,0.00011591,2]
[395156615,1764489754607,466.11,0.00011965,2]
[395156633,1764490048140,7689.12,0.00012131,2]
[395156657,1764490088393,-466.11,0.00012339,2]
[395156658,1764490088472,-250.0,0.0001249,2]
[395156659,1764490088562,-1200.0,0.00012641,2]
[395156660,1764490088643,-2331.363,0.00012642,2]
[395156661,1764490089119,-1505.064,0.00012642,2]
[395156662,1764490089191,-190.581,0.00012642,2]
[395156663,1764490089264,-300.0,0.00012649,2]
[395156664,1764490089335,-166.66,0.0001265,2]
[395156665,1764490089406,-466.11,0.00012713,2]
[395156666,1764490094781,-2033.594,0.00012796,2]
[395156667,1764490094939,-10000.01,0.00012796,2]
[395156668,1764490172152,-2506.54801759,0.00012796,2]
[395156669,1764490172216,-250.0,0.00012797,2]
[395156670,1764490172279,-1000.0,0.00012798,2]
[395156671,1764490174138,-2486.91396482,0.000128,2]
[395156681,1764490199469,1656.29086972,0.00025,120]
[395156684,1764490203308,-1200.0,0.00012775,2]
[395156685,1764490203406,-300.0,0.00012775,2]
[395156686,1764490203481,-300.0,0.00012775,2]
[395156699,1764490218803,150.11448619,0.00025,120]
[395156706,1764490231937,-51762.4864339,0.00012776,2]
[395156707,1764490232111,-9042.6,0.00012776,2]
[395156708,1764490232164,-535.30810618,0.00012776,2]
[395156761,1764490238222,-3448.8,0.00012776,2]
[395156762,1764490238235,-695210.80545992,0.00012776,2]
[395156763,1764490238245,-910.8015,0.00012798,2]
[395156764,1764490238254,-235.2993,0.000128,2]
[395156765,1764490238265,-11713.65969042,0.000128,2]
[395156766,1764490238274,-587.40757828,0.000128,2]
[395156767,1764490238284,-150.0,0.00012873,2]
[395156768,1764490238294,-628.80011146,0.00012874,2]
[395156769,1764490238304,-500.0,0.00012874,2]
[395156770,1764490238314,-500.0,0.00012874,2]
[395156771,1764490238324,-500.0,0.00012874,2]
[395156772,1764490238334,-500.0,0.00012874,2]
[395156773,1764490238344,-500.0,0.00012874,2]
[395156774,1764490238355,-500.0,0.00012874,2]
[395156775,1764490238365,-500.0,0.00012874,2]
[395156776,1764490238375,-500.0,0.00012874,2]
[395156777,1764490238386,-500.0,0.00012874,2]
[395156778,1764490238396,-500.0,0.00012874,2]
[395156779,1764490238409,-500.0,0.00012874,2]
[395156780,1764490238419,-500.0,0.00012874,2]
[395156781,1764490238428,-500.0,0.00012874,2]
[395156782,1764490238438,-500.0,0.00012874,2]
[395156783,1764490238448,-500.0,0.00012874,2]
[395156784,1764490238457,-500.0,0.00012874,2]
[395156785,1764490238468,-500.0,0.00012874,2]
[395156786,1764490238477,-500.0,0.00012874,2]
[395156787,1764490238487,-500.0,0.00012874,2]
[395156788,1764490238497,-500.0,0.00012874,2]
[395156789,1764490238507,-500.0,0.00012874,2]
[395156790,1764490238517,-500.0,0.00012874,2]
[395156791,1764490238527,-500.0,0.00012874,2]
[395156792,1764490238536,-500.0,0.00012874,2]
[395156793,1764490238546,-500.0,0.00012874,2]
[395156794,1764490238556,-500.0,0.00012874,2]
[395156795,1764490238565,-500.0,0.00012874,2]
[395156796,1764490238576,-500.0,0.00012874,2]
[395156797,1764490238586,-500.0,0.00012874,2]
[395156798,1764490238599,-500.0,0.00012874,2]
[395156799,1764490238609,-500.0,0.00012874,2]
[395156801,1764490238618,-500.0,0.00012874,2]
[395156802,1764490238627,-500.0,0.00012874,2]
[395156804,1764490238638,-500.0,0.00012874,2]
[395156806,1764490238649,-500.0,0.00012874,2]
[395156807,1764490238659,-500.0,0.00012874,2]
[395156808,1764490238668,-500.0,0.00012874,2]
[395156809,1764490238678,-500.0,0.00012874,2]
[395156810,1764490238688,-500.0,0.00012874,2]
[395156811,1764490238698,-500.0,0.00012874,2]
[395156813,1764490238707,-500.0,0.00012874,2]
[395156814,1764490238717,-500.0,0.00012874,2]
[395156815,1764490238727,-500.0,0.00012874,2]
[395156816,1764490238736,-500.0,0.00012874,2]
[395156817,1764490238746,-500.0,0.00012874,2]
[395156818,1764490238755,-500.0,0.00012874,2]
[395156819,1764490238766,-500.0,0.00012874,2]
[395156820,1764490238775,-500.0,0.00012874,2]
[395156821,1764490238785,-500.0,0.00012874,2]
[395156822,1764490238797,-500.0,0.00012874,2]
[395156823,1764490238807,-500.0,0.00012874,2]
[395156824,1764490238817,-500.0,0.00012874,2]
[395156825,1764490238827,-500.0,0.00012874,2]
[395156826,1764490238837,-500.0,0.00012874,2]
[395156827,1764490238847,-500.0,0.00012874,2]
[395156828,1764490238856,-500.0,0.00012874,2]
[395156829,1764490238866,-500.0,0.00012874,2]
[395156830,1764490238876,-500.0,0.00012874,2]
[395156831,1764490238889,-500.0,0.00012874,2]
[395156832,1764490238898,-500.0,0.00012874,2]
[395156833,1764490238908,-500.0,0.00012874,2]
[395156834,1764490238918,-500.0,0.00012874,2]
[395156835,1764490238928,-500.0,0.00012874,2]
[395156836,1764490238937,-500.0,0.00012874,2]
[395156837,1764490238947,-500.0,0.00012874,2]
[395156838,1764490238958,-500.0,0.00012874,2]
[395156839,1764490238967,-500.0,0.00012874,2]
[395156840,1764490238978,-460.97450376,0.00012874,2]
[395156841,1764490238987,-500.0,0.00012874,2]
[395156842,1764490238998,-500.0,0.00012874,2]
[395156843,1764490239008,-500.0,0.00012874,2]
[395156844,1764490239017,-500.0,0.00012874,2]
[395156845,1764490239027,-500.0,0.00012874,2]
[395156846,1764490239037,-500.0,0.00012874,2]
[395156847,1764490239047,-500.0,0.00012874,2]
[395156848,1764490239056,-500.0,0.00012874,2]
[395156849,1764490239066,-500.0,0.00012874,2]
[395156850,1764490239075,-500.0,0.00012874,2]
[395156851,1764490239085,-500.0,0.00012874,2]
[395156852,1764490239094,-500.0,0.00012874,2]
[395156853,1764490239105,-500.0,0.00012874,2]
[395156854,1764490239115,-500.0,0.00012874,2]
[395156855,1764490239125,-500.0,0.00012874,2]
[395156856,1764490239135,-500.0,0.00012874,2]
[395156857,1764490239144,-500.0,0.00012874,2]
[395156858,1764490239153,-500.0,0.00012874,2]
[395156859,1764490239164,-500.0,0.00012874,2]
[395156860,1764490239183,-500.0,0.00012874,2]
[395156861,1764490239194,-500.0,0.00012874,2]
[395156862,1764490239204,-99656.26450663,0.00012876,2]
[395156863,1764490239214,-584.32793471,0.00012891,2]
[395156864,1764490239787,-188.31138447,0.00012891,2]
[395156865,1764490239808,-198.41344031,0.00012891,2]
[395156866,1764490239818,-194.25158579,0.00012892,2]
[395156867,1764490239828,-500.0,0.00012892,2]
[395156868,1764490239837,-500.0,0.00012892,2]
[395156869,1764490239847,-564.39360719,0.00012892,2]
[395156870,1764490239856,-151.0,0.00012892,2]
[395156871,1764490239865,-151.0,0.00012892,2]
[395156872,1764490239874,-151.0,0.00012892,2]
[395156873,1764490239885,-151.0,0.00012892,2]
[395156874,1764490239894,-151.0,0.00012892,2]
[395156875,1764490239903,-200.0,0.00012892,2]
[395156876,1764490239912,-151.0,0.00012892,2]
[395156877,1764490239921,-151.0,0.00012892,2]
[395156878,1764490239937,-151.0,0.00012892,2]
[395156879,1764490239946,-151.0,0.00012892,2]
[395156880,1764490239956,-190.7567282,0.00012892,2]
[395156881,1764490239966,-973.09,0.00012896,2]
[395156882,1764490239975,-17490.70721045,0.00012897,2]
[395156883,1764490239984,-150.0,0.00012898,2]
[395156884,1764490239993,-162.44987593,0.00012898,2]
[395156885,1764490240003,-150.0,0.00012898,2]
[395156886,1764490240012,-150.0,0.00012898,2]
[395156887,1764490240021,-151.84362429,0.00012898,2]
[395156888,1764490240030,-158.23743081,0.00012898,2]
[395156889,1764490240040,-500.0,0.00012898,2]
[395156890,1764490240049,-150.0,0.00012898,2]
[395156891,1764490240059,-150.0,0.00012898,2]
[395156892,1764490240069,-150.0,0.00012898,2]
[395156893,1764490240078,-150.0,0.00012898,2]
[395156894,1764490240087,-500.0,0.00012898,2]